Cogmind - Beta 15 @@@ ROGUE MODE // 2025.07.13 @ 15:37:13 Player: Rockstar Result: Destroyed by Y-45 Defender with Beam Rifle Performance ------------- Evolutions (1) 500 Regions Visited (2) 400 Robots Destroyed (30) 150 Value Destroyed (680) 680 Prototype IDs (1) 20 Alien Tech Used (0) 0 Bonus (0) 0 TOTAL SCORE: 1750 Bonus ------- None Cogmind --------- Core Integrity 0/400 Matter 28/300 Energy 117/125 System Corruption 1% Temperature Cool (9) Movement Rolling (95) Ox1 Location -9/Materials Parts ------- > --- POWER (1) -------- Light Ion Engine > --- PROPULSION (4) --- Wheel > --- UTILITY (2) ------ Medium Storage Unit Light Armor Plating > --- WEAPON (2) ------- (None) > --- INVENTORY (10) --- Light Ion Engine Light Ion Engine Cryofiber Web Small Storage Unit Sensor Array Signal Interpreter Improved Light Armor Plating Improved Light Armor Plating Beam Cannon Beam Cannon Peak State ------------ > --- POWER ------------ Light Ion Engine > --- PROPULSION ------- Flight Unit Flight Unit Flight Unit Flight Unit > --- UTILITY ---------- Small Storage Unit Improved Light Armor Plating > --- WEAPON ----------- Small Laser Grenade Launcher > --- INVENTORY -------- Light Ion Engine Light Ion Engine Power Shielding Improved Light Armor Plating Improved Light Armor Plating Improved Light Armor Plating [Rating: 12] Favorites ----------- Power Light Ion Engine Engine Light Ion Engine Propulsion Flight Unit Treads Light Treads Wheel Wheel Flight Unit Flight Unit Utility Small Storage Unit Storage Small Storage Unit Protection Power Shielding Weapon Light Assault Rifle Energy Gun Medium Laser Ballistic Gun Light Assault Rifle Launcher Grenade Launcher Build | -11 -10 -9 ------- Run | Yrd Mat Mat Slots Evolved 2 | . . 2 Power . | . . . Propulsion 2 | . . 2 Utility . | . . . Weapon . | . . . Parts Attached 28 | 5 6 17 Power 5 | . 2 3 Engine 5 | . 2 3 Core . | . . . Reactor . | . . . Propulsion 9 | 2 2 5 Treads 2 | . . 2 Leg . | . . . Wheel 3 | 2 . 1 Hover . | . . . Flight 4 | . 2 2 Utility 8 | 1 2 5 Device . | . . . Storage 3 | 1 1 1 Processor . | . . . Hackware . | . . . Protection 5 | . 1 4 Artifact . | . . . Weapon 6 | 2 . 4 Energy Gun 3 | 1 . 2 Energy Cannon . | . . . Ballistic Gun 1 | 1 . . Ballistic Cannon . | . . . Launcher 2 | . . 2 Special Weapon . | . . . Impact Weapon . | . . . Slashing Weapon . | . . . Piercing Weapon . | . . . Special Melee Weapon . | . . . Unidentified Prototypes 1 | . . 1 Parts Lost 11 | . 3 8 Power . | . . . Propulsion 7 | . 1 6 Utility . | . . . Weapon 4 | . 2 2 Highest Loss Streak 4 | . 3 4 To Critical Strikes . | . . . Average Backups 6 | 2 6 7 Power 1 | 1 1 2 Propulsion 1 | . 2 . Utility 1 | . . 5 Weapon 1 | . 2 . Tool/Special . | . . . Unused Backups 14 | . 6 8 Power 3 | . 2 1 Propulsion . | . . . Utility 7 | . 2 5 Weapon 4 | . 2 2 Tool/Special . | . . . Average Slot Usage (%) 84 | . 95 63 Engine 10 | . 13 3 Treads 2 | . . 5 Wheel 17 | . 25 1 Flight 8 | . . 21 Storage 12 | . 14 11 Protection 12 | . 13 10 Energy Gun 9 | . 13 3 Ballistic Gun 8 | . 13 . Launcher 1 | . . 4 Peak Build Rating 12 | 5 7 12 Average Rating 7 | 3 6 8 On Entrance 3 | . 5 4 Naked Turns . | . . . Heaviest Build 19 | 8 19 17 Greatest Support 40 | 26 26 40 Greatest Overweight (x) 1 | . 1 1 Average Overweight (x) . | . . . Largest Inventory Capacity 10 | 8 10 10 Average Capacity 8 | 6 8 8 Most Carried 10 | 3 10 10 Average Carried 6 | 2 6 7 Final Capacity 10 | 8 8 10 Final Carried 10 | 3 7 10 Class Distribution -------------------- 85% | Mutant 14% | Scavenger-Sprinter Dominant Class ---------------- Mutant | -10/Materials Mutant | -9/Materials Resources | -11 -10 -9 ----------- Run | Yrd Mat Mat Matter Collected 450 | 226 128 96 Remotely . | . . . Salvage Created 751 | . 318 433 Parts 59 | . 17 42 Haulers Intercepted 1 | . 1 . Recyclers Shooed . | . . . Parts Field Recycled . | . . . Retrieved Matter . | . . . Parts Self-Destructed . | . . . Prevented . | . . . Kills | -11 -10 -9 ------- Run | Yrd Mat Mat Combat Hostiles Destroyed 20 | . 8 12 Guns 10 | . 8 2 AOE 10 | . . 10 Classes Destroyed 7 | . 3 4 Worker 1 | . . 1 Builder 7 | . . 7 Hauler 1 | . 1 . Recycler 1 | . . 1 Swarmer 5 | . 2 3 Grunt 12 | . 6 6 Sentry 3 | . . 3 Best Kill Streak 12 | . 2 12 Combat Bots Only 6 | . 2 6 Max Kills in Single Turn 4 | . 1 4 Gunslinging . | . . . Exploded 2 | . . 2 Melee . | . . . Uniques/NPCs Destroyed . | . . . Combat | -11 -10 -9 -------- Run | Yrd Mat Mat Hostile Shots Fired 214 | . 70 144 Missed 69 | . 15 54 Hits 145 | . 55 90 Melee 4 | . . 4 Projectile 141 | . 55 86 Critical Strikes 1 | . . 1 Part Disruptions 1 | . . 1 Damage Taken 1907 | . 531 1376 Core 597 | . 183 414 Absorbed by Shields . | . . . Redirected to Shielding 13 | . 13 . Regen/Repaired (Parts) 35 | . 35 . Core Remaining (%) 63 | 100 26 . Volleys Fired 61 | . 37 24 Largest 2 | . 2 2 Hottest 70 | . 70 70 Shots Fired 106 | . 74 32 Gun 88 | . 74 14 Cannon . | . . . Launcher 18 | . . 18 Special . | . . . Kinetic 37 | . 37 . Thermal 51 | . 37 14 Explosive 18 | . . 18 Electromagnetic . | . . . Robot Hit Streak 9 | . 9 5 Robot Miss Streak 5 | . 5 3 Penetration Max . | . . . Secondary Targets 2 | . 2 . Max Gunslinging Chain 1 | . 1 . Shots Hit Robots 61 | . 46 15 Core Hits 51 | . 16 35 Critical Kills . | . . . Critical Parts Destroyed 1 | . 1 . Critical Strikes 4 | . 4 . Burn 3 | . 3 . Destroy 1 | . 1 . Melee Attacks . | . . . Impact . | . . . Slashing . | . . . Piercing . | . . . Sneak Attacks . | . . . Combat Hostiles . | . . . Follow-up Attacks . | . . . Damage Inflicted 1916 | . 484 1432 Guns 583 | . 484 99 Cannons . | . . . Explosions 1333 | . . 1333 Melee . | . . . Ramming . | . . . Kinetic 179 | . 179 . Thermal 404 | . 305 99 Explosive 1285 | . . 1285 Electromagnetic 48 | . . 48 Impact . | . . . Slashing . | . . . Piercing . | . . . Highest Corruption 1 | . . 1 Average Corruption 1 | . . 1 Corruption Purged . | . . . Corruption Blocked . | . . . Effects 1 | . . 1 Parts Rejected 1 | . . 1 Overload Shots . | . . . Overflow Damage . | . . . Projectiles . | . . . Explosions . | . . . Melee . | . . . Knockbacks . | . . . Impact . | . . . Kinetic . | . . . Secondary . | . . . Self-Inflicted Damage 95 | . . 95 Shots 3 | . . 3 Rammed . | . . . Targets Rammed . | . . . Kicked . | . . . Crushed . | . . . Highest Temperature 306 | . 306 174 Average Temperature 96 | . 100 89 Received Heat Transfer 612 | . 180 432 Siege Activations . | . . . Martial Activations . | . . . Shielding Activations . | . . . Robots Disrupted . | . . . Combat Hostiles . | . . . Robots Corrupted . | . . . Combat Hostiles . | . . . Parts Fried . | . . . Impact Corruptions . | . . . Robots Melted . | . . . Combat Hostiles . | . . . Parts Melted 1 | . 1 . Heat Transferred 1335 | . 1110 225 Parts Sabotaged . | . . . Parts Stolen . | . . . Parts Stripped . | . . . Power Chain Reactions . | . . . Alert | -11 -10 -9 ------- Run | Yrd Mat Mat Maximum Alert Level 1 | . . 1 Low Security (%) 85 | 100 100 56 Level 1 14 | . . 43 Level 2 . | . . . Level 3 . | . . . Level 4 . | . . . Level 5 . | . . . High Security . | . . . Max Security . | . . . Peak Influence 381 | . 62 381 Initial 1 | . . 1 Average 80 | . 26 194 Influence Increases 741 | . 222 519 Destroy 0b10 Robot/C 400 | . 160 240 Destroy 0b10 Robot/NC 50 | . 5 45 Destroy Leader 92 | . 32 60 Successful Hack 18 | . 10 8 Disable Machine 45 | . . 45 Destroy Structure 106 | . . 106 Lose Combat Pursuer 30 | . 15 15 Influence Decreases 412 | . 216 196 Entered New Map 5 | . . 5 Time Decay 297 | . 186 111 Lost Part 110 | . 30 80 Squads Dispatched 4 | . 2 2 Investigation 2 | . 1 1 Extermination . | . . . Reinforcement 2 | . 1 1 Assault . | . . . Garrison . | . . . Intercept . | . . . Searches Triggered . | . . . Construction Impeded . | . . . Haulers Reinforced . | . . . Active Scanning Responses . | . . . Cargo Convoy Interrupts . | . . . Stealth | -11 -10 -9 --------- Run | Yrd Mat Mat Distress Signals 1 | . . 1 Communications Jammed . | . . . Distress Signals . | . . . Times Spotted 37 | . 15 22 Peak Tracking Total 9 | . 5 9 Tactical Retreats 2 | . 1 1 Traps | -11 -10 -9 ------- Run | Yrd Mat Mat Traps Triggered 2 | . 1 1 Indirectly . | . . . Trap Hack Attempts . | . . . Triggered . | . . . Disarmed . | . . . Reprogrammed . | . . . Reused . | . . . Traps Extracted . | . . . Installed . | . . . Triggered . | . . . Machines | -11 -10 -9 ---------- Run | Yrd Mat Mat Machines Disabled 3 | . . 3 Max in Single Turn 1 | . . 1 Machines Repaired . | . . . Machines Dismantled . | . . . Machines Sabotaged . | . . . Overloaded Fab Kills . | . . . Hacking | -11 -10 -9 --------- Run | Yrd Mat Mat Machines Accessed 5 | . 4 1 Terminals 4 | . 3 1 Fabricators . | . . . Repair Stations 1 | . 1 . Recycling Units . | . . . Scanalyzers . | . . . Garrison Access . | . . . Total Hacks 11 | . 8 3 Successful 5 | . 4 1 Failed 6 | . 4 2 Catastrophic 2 | . 2 . Database Lockouts . | . . . Manual 6 | . 3 3 Terminals 9 | . 6 3 Fabricators . | . . . Repair Stations 2 | . 2 . Recycling Units . | . . . Scanalyzers . | . . . Garrison Access . | . . . Terminal Hacks 3 | . 2 1 Robot Analysis 1 | . 1 . Branch Access Points 1 | . . 1 Emergency Access Points 1 | . 1 . Fabricator Hacks . | . . . Repair Station Hacks 2 | . 2 . Scan Component 1 | . 1 . Repair 1 | . 1 . Recycling Unit Hacks . | . . . Scanalyzer . | . . . Garrison Access Hacks . | . . . Unauthorized Hacks . | . . . Terminals . | . . . Fabricators . | . . . Repair Stations . | . . . Recycling Units . | . . . Scanalyzers . | . . . Garrison Access . | . . . Data Cores Recovered . | . . . Used . | . . . Hacking Detections 5 | . 4 1 Full Trace Events 2 | . 2 . Feedback Events . | . . . Feedback Blocked . | . . . Robot Schematics Acquired . | . . . Robots Built . | . . . Authchips . | . . . Time . | . . . Total Robot Build Rating . | . . . Part Schematics Acquired . | . . . Parts Built . | . . . Authchips . | . . . Time . | . . . Total Part Build Rating . | . . . Parts Repaired 1 | . 1 . Time 26 | . 26 . Parts Recycled . | . . . Recycled Matter . | . . . Retrieved Matter . | . . . Retrieved Components . | . . . Parts Scanalyzed . | . . . Part Schematics Acquired . | . . . Parts Damaged . | . . . Bothacking | -11 -10 -9 ------------ Run | Yrd Mat Mat Used RIF Installer . | . . . Robots Hacked . | . . . Non-combat . | . . . Combat . | . . . Robot Hacks Applied . | . . . Relay Couplers Released . | . . . Fabnet Peak Effective % . | . . . Robots Rewired . | . . . Allies Hacked . | . . . Hacks Repelled . | . . . Allies | -11 -10 -9 -------- Run | Yrd Mat Mat Total Allies . | . . . Largest Group . | . . . Highest-Rated Group . | . . . Highest-Rated Ally . | . . . Total Orders . | . . . Ally Attacks . | . . . Total Damage . | . . . Kills . | . . . Allies Corrupted . | . . . Allies Melted . | . . . Intel | -11 -10 -9 ------- Run | Yrd Mat Mat Active Infowar (turns) . | . . . Robot Analysis Total 1 | . 1 . Derelict Logs Recovered . | . . . Drone Launches . | . . . Drone Recoveries . | . . . Exploration | -11 -10 -9 ------------- Run | Yrd Mat Mat Turns Passed 723 | 45 438 240 Spaces Moved 587 | 41 279 267 Core 1 | 1 . . Treads 23 | . . 23 Legs . | . . . Wheels 321 | 40 243 38 Hover . | . . . Flight 242 | . 36 206 Fastest Speed 31 | 50 37 31 Average Speed 70 | 85 83 55 Slowest Speed 160 | 90 95 160 Overloaded Moves . | . . . Propulsion Burnouts . | . . . Robots Hopped 4 | . 2 2 Potential Cave-ins . | . . . Cave-ins Triggered . | . . . Exploration Rate (%) 24 | 3 43 27 Regions Visited 2 Branch Regions . Pre-discovered Areas . | . . . Known Exits Taken . | . . . Unknown Exits Taken 2 | 1 1 . Scrap Searched . | . . . Spaces Dug . | . . . Terrain Destroyed 116 | . . 116 Melee . | . . . Projectile . | . . . AOE 116 | . . 116 Terrain Rammed . | . . . Walls Destroyed . | . . . Machines Disabled . | . . . Actions | -11 -10 -9 --------- Run | Yrd Mat Mat Total 791 | 48 419 324 Wait 67 | . 67 . Move 577 | 40 274 263 Hop 4 | . 2 2 Pick Up 27 | 3 13 11 Fast Attach 17 | 5 6 6 Attach 13 | . 5 8 Detach 4 | . 3 1 Swap 5 | . 2 3 Drop 16 | . 10 6 Fire 61 | . 37 24 Melee . | . . . Ram . | . . . Kick . | . . . Crush . | . . . Escape Stasis . | . . . Rewire . | . . . Trap . | . . . Miscellaneous . | . . . Route ------- -11/Scrapyard -10/Materials -9/Materials (discovered 2 exits: Min / *Sto) History --------- Turn | Location | Event 7 | -11/Scrapyard | Discovered new exit (range 16) 46 | -11/Scrapyard | Entered Materials 287 | -10/Materials | Repaired Wheel 308 | -10/Materials | Build established: Mutant 443 | -10/Materials | Core integrity fell below 50% 483 | -10/Materials | Discovered new exit (range 4) 484 | -10/Materials | Entered another Materials area 484 | -9/Materials | Evolved 2 slots: Propulsion x2 502 | -9/Materials | Lost 3 parts (1n2w) 598 | -9/Materials | Lost 3 parts (2n1w) 643 | -9/Materials | Core integrity fell below 50% 669 | -9/Materials | Core integrity fell below 20% 689 | -9/Materials | Identified exit to Mines 689 | -9/Materials | Identified exit to Storage 705 | -9/Materials | Lost 4 parts (3n1w) 724 | -9/Materials | Destroyed by Y-45 Defender with Beam Rifle Last Messages --------------- Current location identified: Materials >>Access(Branch) Found 2 branch access points: (14,9) Mines (50,84) Storage Map updated. U-05 Engineer lays Concrete. K-01 Serf collects debris. U-05 Engineer lays Concrete. Acquired Beam Cannon. K-01 Serf collects debris. Acquired Beam Cannon. Acquired 26 matter. Acquired 5 matter. Acquired Prototype Engine. Identified Cld. Ion Engine. Faulty integration triggers energy drain (-47). Dropped Faulty Cld. Ion Engine. Lgt. Treads destroyed. Acquired Lgt. Ion Engine. Map ----- +----------------------------------------------------+ | ??????????????# ## #??????????? ""??????????? | | ??????????????# ## #########??? ?????????? | | ###???????????+ ## # ????? ??????????? | | # ####????????# ## # """ #??? ??????????? | | #????????# ## # """ #??? ??????????? | | """ #????????# ## # """ #???##??????????? | | """ #?#+?????# ## + #???????????????? | | """ #?# #????# ## # """ #???????????????? | | #?# #????# ## # """ #???????????????? | | """ #?# #????# ## #= """ #???????????????? | | """ #?# #????# ## # ???????????????? | | """ #?# #????# ## #########????????????????? | | #?# ###### ##* #????????????????????????? | | #+###### = #????????????????????????? | | %[ #????????????????????????? | | * #????????????????????????? | | [ #????????????????????????? | | ########### = #????????????????????????? | | ####??????#! [[** ## + "??????????????????????? | | ######## ## # ""?????????????????????? | | # # """ ## #? ????????????????????? | | # # """ ## #??! ???????????????????? | | # """# """ ## #??? ???????????????????? | | # [ """# ## ##???##??????????????????? | | """# # ####### #???????????? | | + # @ #???????????? | | # ### ! # Y #???????????? | | !* ### # a #???????????? | | %= %|! # ### ### #???????????? | | = * ! ! #######?? #???? ##???????????? | | * ###T## #?????????#???????????????????? | | # ####?#### #?????????????????????????????? | | ??????##+###?????????????????????????????? | | # ???????????????????????????????????????? | | # """ """ ??????????????????????????????????????? | | # """ """ ??????????????????????????????????????? | | # """ """ #?????????????????????????????????????? | | # ????????????????????????????????????????? | | ## ????????????????????????????????????????? | | ?# ????????????????????????????????????????? | | ??##??###????????????????????????????????????????? | | ?????????????????????????????????????????????????? | | | | | | | | | | | | | | | | | +----------------------------------------------------+ Best States ------------- Heat Dissipation 28 Energy Generation 10 Energy Capacity 250 Matter Stores 300 Matter Capacity 300 Sight Range 16 Terrain Scan Density 10 Armor Coverage 150 Power Shielding 33 Evasion (%) 63 Recoil Reduction 2 Item Schematics ----------------- None Robot Schematics ------------------ None Fabricated ------------ Nothing Repaired ---------- Wheel | 12% | -10/Materials Alien Tech Used ----------------- None Achievements -------------- None Challenges ------------ None Game ------ Seed LightpackImpactUnit Manual? 0 Play Time 00:18:33 Cumulative 68.6 hours Start 2025.07.13 @ 15:17:49 End 2025.07.13 @ 15:37:13 Sessions 1 Manual Loads 0 Difficulty Rogue Special Mode None Game No. 58 Rogue 55 Adventurer 1 Explorer 2 Win Type - Total 0 Types 0/0/0/0/0/0/0/0/0/0 Lore% 22 Gallery% 41 Achievement% 31 Wizard Run 0 Options --------- Layout 0 ASCII 0 Keyboard 0 Movement Mouse Keybinds 0 Fullscreen 2 Font 24/Smallcaps Map View 76x50 Zoom Use 0% Tactical HUD 0 Map Filters NONE Filters NONE Steam 1 RUN: 06f45e51-8d80-43bf-bb97-db2a58d6ae08